Cogmind - Beta 10.2 @@@ ROGUE MODE // 2021.03.13 @ 23:28:23 Player: Exp. Geonium Core Result: Destroyed by D-53 Grenadier with Mini Grenade Launcher Performance ------------- Evolutions (0) 0 Regions Visited (2) 400 Robots Destroyed (18) 90 Value Destroyed (317) 317 Prototype IDs (0) 0 Alien Tech Used (0) 0 Bonus (0) 0 TOTAL SCORE: 807 Bonus ------- None Cogmind --------- Core Integrity 0/250 Matter 280/300 Energy 65/100 System Corruption 0% Temperature Cool (0) Movement Walking (120) Location -10/Mines Parts ------- > --- POWER (1) -------- (None) > --- PROPULSION (2) --- Aluminum Leg Aluminum Leg > --- UTILITY (2) ------ Small Storage Unit > --- WEAPON (2) ------- (None) > --- INVENTORY (6) ---- Ion Engine Light Ion Engine Improved Terrain Scanner Terrain Scan Processor Peak State ------------ > --- POWER ------------ Ion Engine > --- PROPULSION ------- Aluminum Leg Aluminum Leg > --- UTILITY ---------- Small Storage Unit Improved Terrain Scanner > --- WEAPON ----------- EM Pulse Gun Medium Laser > --- INVENTORY -------- Light Ion Engine Light Treads Light Treads Wheel Wheel Light Assault Rifle [Rating: 8] Favorites ----------- Power Ion Engine Engine Ion Engine Propulsion Aluminum Leg Treads Light Treads Leg Aluminum Leg Utility Small Storage Unit Device Improved Terrain Scanner Storage Small Storage Unit Weapon Light Assault Rifle Energy Gun Medium Laser Ballistic Gun Light Assault Rifle Build | -11 -10 -10 ------- Run | Scr Mat Min Slots Evolved . | . . . Power . | . . . Propulsion . | . . . Utility . | . . . Weapon . | . . . Parts Attached 8 | 2 1 5 Power . | . . . Engine . | . . . Core . | . . . Reactor . | . . . Propulsion 4 | . . 4 Treads 2 | . . 2 Leg 2 | . . 2 Wheel . | . . . Hover . | . . . Flight . | . . . Utility 2 | 2 . . Device 2 | 2 . . Storage . | . . . Processor . | . . . Hackware . | . . . Protection . | . . . Artifact . | . . . Weapon 2 | . 1 1 Energy Gun 1 | . . 1 Energy Cannon . | . . . Ballistic Gun 1 | . 1 . Ballistic Cannon . | . . . Launcher . | . . . Special Weapon . | . . . Impact Weapon . | . . . Slashing Weapon . | . . . Piercing Weapon . | . . . Special Melee Weapon . | . . . Unidentified Prototypes . | . . . Parts Lost 5 | . . 5 Power . | . . . Propulsion 2 | . . 2 Utility . | . . . Weapon 3 | . . 3 Highest Loss Streak 4 | . . 4 Average Slot Usage (%) 99 | . 100 99 Engine 14 | . 14 14 Treads 11 | . . 13 Leg 16 | . 28 14 Device 14 | . 14 14 Storage 14 | . 14 14 Energy Gun 13 | . 14 13 Ballistic Gun 13 | . 14 13 Naked Turns . | . . . Heaviest Build 14 | 14 13 13 Greatest Support 40 | 20 20 40 Greatest Overweight (x) 1 | . . 1 Average Overweight (x) . | . . . Largest Inventory Capacity 6 | 6 6 6 Average Capacity 6 | 6 6 6 Most Carried 6 | 6 6 6 Average Carried 5 | 6 6 5 Final Capacity 6 | 6 6 6 Final Carried 6 | 6 6 4 Class Distribution -------------------- 100% | Mutant Dominant Class ---------------- Mutant | -10/Materials Mutant | -10/Mines Resources | -11 -10 -10 ----------- Run | Scr Mat Min Matter Collected 308 | 220 11 77 Remotely . | . . . Salvage Created 609 | 160 18 431 Parts 38 | 11 2 25 Haulers Intercepted . | . . . Recyclers Shooed 1 | 1 . . Parts Field Recycled . | . . . Retrieved Matter . | . . . Parts Self-Destructed . | . . . Prevented . | . . . Kills | -11 -10 -10 ------- Run | Scr Mat Min Combat Hostiles Destroyed 6 | . . 6 Guns 5 | . . 5 AOE 1 | . . 1 Classes Destroyed 5 | 2 . 3 Worker 1 | . . 1 Builder 1 | . . 1 Tunneler 8 | 4 1 3 Recycler 2 | 1 . 1 Grunt 6 | . . 6 Best Kill Streak 3 | 3 1 2 Combat Bots Only 2 | . . 2 Max Kills in Single Turn 1 | 1 1 1 Gunslinging . | . . . Exploded 1 | . . 1 Melee . | . . . Uniques/NPCs Destroyed . | . . . Combat | -11 -10 -10 -------- Run | Scr Mat Min Damage Taken 871 | 34 79 758 Core 274 | 17 30 227 Absorbed by Shields . | . . . Core Remaining (%) 93 | 93 . . Volleys Fired 57 | 9 1 47 Largest 2 | 2 2 2 Hottest 90 | 90 70 70 Shots Fired 114 | 18 2 94 Gun 114 | 18 2 94 Cannon . | . . . Launcher . | . . . Special . | . . . Kinetic 48 | . 1 47 Thermal 36 | 9 1 26 Explosive . | . . . Electromagnetic 30 | 9 . 21 Robot Hit Streak 15 | 6 . 15 Robot Miss Streak 6 | 3 4 6 Penetration Max . | . . . Secondary Targets . | . . . Shots Hit Robots 68 | 9 . 59 Core Hits 34 | 6 1 27 Critical Hits . | . . . Critical Kills . | . . . Critical Parts Destroyed . | . . . Melee Attacks . | . . . Impact . | . . . Slashing . | . . . Piercing . | . . . Sneak Attacks . | . . . Combat Hostiles . | . . . Follow-up Attacks . | . . . Damage Inflicted 795 | 148 22 625 Guns 698 | 120 22 556 Cannons . | . . . Explosions 97 | 28 . 69 Melee . | . . . Ramming . | . . . Kinetic 242 | . 9 233 Thermal 335 | 77 13 245 Explosive . | . . . Electromagnetic 218 | 71 . 147 Impact . | . . . Slashing . | . . . Piercing . | . . . Highest Corruption . | . . . Average Corruption . | . . . Corruption Purged . | . . . Overload Shots . | . . . Overflow Damage . | . . . Projectiles . | . . . Explosions . | . . . Melee . | . . . Knockbacks . | . . . Impact . | . . . Kinetic . | . . . Secondary . | . . . Self-Inflicted Damage 89 | 35 . 54 Shots 2 | 1 . 1 Rammed . | . . . Targets Rammed . | . . . Kicked . | . . . Crushed . | . . . Highest Temperature 309 | 102 30 309 Average Temperature 82 | 42 18 94 Received Heat Transfer 168 | . . 168 Siege Activations . | . . . Robots Corrupted . | . . . Combat Hostiles . | . . . Parts Fried . | . . . Impact Corruptions . | . . . Robots Melted . | . . . Combat Hostiles . | . . . Parts Melted 1 | . . 1 Heat Transferred 853 | 198 37 618 Parts Sabotaged . | . . . Parts Stolen . | . . . Parts Stripped . | . . . Power Chain Reactions 2 | 1 . 1 Missiles Intercepted . | . . . Alert | -11 -10 -10 ------- Run | Scr Mat Min Peak Influence 187 | 25 21 187 Initial 16 | . 16 7 Average 72 | 13 19 90 Maximum Alert Level . | . . . Low Security (%) 100 | 100 100 100 Level 1 . | . . . Level 2 . | . . . Level 3 . | . . . Level 4 . | . . . Level 5 . | . . . High Security . | . . . Max Security . | . . . Squads Dispatched . | . . . Investigation . | . . . Extermination . | . . . Reinforcement . | . . . Assault . | . . . Garrison . | . . . Intercept . | . . . Construction Impeded . | . . . Haulers Reinforced . | . . . Stealth | -11 -10 -10 --------- Run | Scr Mat Min Distress Signals . | . . . Communications Jammed . | . . . Distress Signals . | . . . Times Spotted 11 | . 3 8 Peak Tracking Total 3 | . 3 2 Tactical Retreats . | . . . Traps | -11 -10 -10 ------- Run | Scr Mat Min Traps Triggered . | . . . Indirectly . | . . . Trap Hack Attempts . | . . . Triggered . | . . . Disarmed . | . . . Reprogrammed . | . . . Reused . | . . . Traps Extracted . | . . . Installed . | . . . Triggered . | . . . Machines | -11 -10 -10 ---------- Run | Scr Mat Min Machines Disabled . | . . . Max in Single Turn . | . . . Machines Sabotaged . | . . . Garrisons Compromised . | . . . Overloaded Fab Kills . | . . . Fab Network Shutdowns . | . . . Hacking | -11 -10 -10 --------- Run | Scr Mat Min Machines Accessed . | . . . Terminals . | . . . Fabricators . | . . . Repair Stations . | . . . Recycling Units . | . . . Scanalyzers . | . . . Garrison Access . | . . . Total Hacks . | . . . Successful . | . . . Failed . | . . . Catastrophic . | . . . Database Lockouts . | . . . Manual . | . . . Terminals . | . . . Fabricators . | . . . Repair Stations . | . . . Recycling Units . | . . . Scanalyzers . | . . . Garrison Access . | . . . Terminal Hacks . | . . . Fabricator Hacks . | . . . Repair Station Hacks . | . . . Recycling Unit Hacks . | . . . Scanalyzer . | . . . Garrison Access Hacks . | . . . Unauthorized Hacks . | . . . Terminals . | . . . Fabricators . | . . . Repair Stations . | . . . Recycling Units . | . . . Scanalyzers . | . . . Garrison Access . | . . . Data Cores Recovered . | . . . Used . | . . . Hacking Detections . | . . . Full Trace Events . | . . . Feedback Events . | . . . Feedback Blocked . | . . . Robot Schematics Acquired . | . . . Robots Built . | . . . Matter . | . . . Time . | . . . Total Robot Build Rating . | . . . Part Schematics Acquired . | . . . Parts Built . | . . . Matter . | . . . Time . | . . . Total Part Build Rating . | . . . Parts Repaired . | . . . Time . | . . . Parts Recycled . | . . . Recycled Matter . | . . . Retrieved Matter . | . . . Retrieved Components . | . . . Parts Scanalyzed . | . . . Part Schematics Acquired . | . . . Parts Damaged . | . . . Bothacking | -11 -10 -10 ------------ Run | Scr Mat Min Used RIF Installer . | . . . Robots Hacked . | . . . Non-combat . | . . . Combat . | . . . Robot Hacks Applied . | . . . Relay Couplers Released . | . . . Robots Rewired . | . . . Allies Hacked . | . . . Hacks Repelled . | . . . Allies | -11 -10 -10 -------- Run | Scr Mat Min Total Allies . | . . . Largest Group . | . . . Highest-Rated Group . | . . . Highest-Rated Ally . | . . . Total Orders . | . . . Ally Attacks . | . . . Total Damage . | . . . Kills . | . . . Allies Corrupted . | . . . Allies Melted . | . . . Intel | -11 -10 -10 ------- Run | Scr Mat Min Robot Analysis Total . | . . . Derelict Logs Recovered 1 | . . 1 Drone Launches . | . . . Drone Recoveries . | . . . Exploration | -11 -10 -10 ------------- Run | Scr Mat Min Turns Passed 713 | 98 75 540 Spaces Moved 371 | 30 55 286 Core 1 | . . 1 Treads 118 | . . 118 Legs 252 | 30 55 167 Wheels . | . . . Hover . | . . . Flight . | . . . Fastest Speed 100 | 120 120 100 Average Speed 132 | 120 120 136 Slowest Speed 160 | 120 120 160 Overloaded Moves . | . . . Propulsion Burnouts . | . . . Robots Hopped . | . . . Cave-ins Triggered . | . . . Exploration Rate (%) 23 | 4 19 48 Regions Visited 2 Branch Regions 1 Pre-discovered Areas 1 | . . 1 Known Exits Taken . | . . . Unknown Exits Taken 2 | 1 1 . Scrap Searched . | . . . Spaces Dug . | . . . Terrain Destroyed 8 | 2 . 6 Melee . | . . . Projectile . | . . . AOE 8 | 2 . 6 Terrain Rammed . | . . . Walls Destroyed . | . . . Machines Disabled . | . . . Actions | -11 -10 -10 --------- Run | Scr Mat Min Total 488 | 74 61 353 Wait 48 | 33 5 10 Move 369 | 29 54 286 Hop . | . . . Pick Up 1 | . . 1 Fast Attach 1 | 1 . . Attach 3 | . . 3 Detach 2 | . . 2 Swap 4 | 1 1 2 Drop 3 | 1 . 2 Fire 57 | 9 1 47 Melee . | . . . Ram . | . . . Kick . | . . . Crush . | . . . Escape Stasis . | . . . Rewire . | . . . Trap . | . . . Miscellaneous . | . . . Route ------- -11/Scrapyard -10/Materials -10/Mines History --------- Turn | Location | Event 1 | -11/Scrapyard | Discovered new exit (range 1) 99 | -11/Scrapyard | Entered Materials 153 | -10/Materials | Discovered new exit (range 13) 174 | -10/Materials | Entered Mines 256 | -10/Mines | Core integrity fell below 50% 310 | -10/Mines | Build established: Mutant 382 | -10/Mines | Learned Materials emergency access door positions 637 | -10/Mines | Learned location of Storage (-8) 659 | -10/Mines | Assembled infested the area 709 | -10/Mines | Core integrity fell below 20% 714 | -10/Mines | Destroyed by D-53 Grenadier with Mini Grenade Launcher Last Messages --------------- 00634_ Acquired 3 matter. 00637_ A derelict emerges from the shadows: "Are any of them following you? I'm here trying to lose some heat after our second raid on Storage failed. Whatever you do stay away from that place, they've tightened security following our previous successful raids." World map updated: -8/Storage. 00639_ VH-1Y2(g): "We scattered so the Unaware couldn't effectively use their advantage in numbers, and I suggest you do the same." 00639_ VH-1Y2(g) slips back into the shadows. 00659_ ALERT: Infestation in the mines, dispatching Demolisher response squad. 00672_ R-06 Scavenger collects Med. Matter Pod. 00700_ C-30 ARC bursts open, deploying its payload. 00700_ D-53 Grenadier unfolds itself. 00701_ Lgt. Assault Rifle destroyed. 00709_ The unstable cave ceiling collapses. 00710_ EM Pulse Gun destroyed. 00712_ Lgt. Treads destroyed. 00713_ The unstable cave ceiling collapses. 00713_ Core Extractor disabled. Map ----- +----------------------------------------------------+ | ???????????????????????????????????????????## ### | | ??????????????????????????????????????????## = | | ??????????????????????????????????????????## !% | | ??????????????????????????????????????????# = | | ??????????????????????????????????????????# | | ?????????????????????????????????????###??# | | ????????????????????????????????????## #?## | | ?????????????????????????????????? ## ####### | | ?????????????????????????????????? #?### | | ?????????????????????????????????? ## | | ?????????????????????????????#?????????# | | ?????????????????????????????????????#?## | | ????????????????????????????????????????# # | | ???????????????????????????#????????????# # | | ????????????????????????????????????#???# # | | ????????????????????????????????????????## # | | ?????????????#???????????????????????????# | | ??????????????????????????#?##???????#?### | | ???????????????????????????? #???????????## ### | | ??????????????????#######?? #????????????###??## | | ?????????????????## ## ##? #???????#??????????# | | ??????????????##### ## #?????###########??# | | ??????????????# ###???# #### | | ??????#???????# ##??## ## | | ?????????????## # #?##??????# | | ??????????#??# @ #???????#?# | | ?????????????## ##?????????## = | | ?? ?????#????# #??##???#??##==== | | ????????????### ###??????#??##|%!* | | ??????????????### # d ""d ##????###???###*%= | | ?????????????#??##### """ ##???#?#??#??# ## | | ?????#??????#???????## """ #????????#??# #% | | ??????? ???????#?????# #???#??????## =%= | | ?????????? ???####???# % ##?#?#?????#?# #! | | ??????? ????### ##??## t ####?#????#???# ## | | ???????? ????# ###?# ## ###????#????#?#% ## | | ?????????????# ### #?# ##??#???#?#????# ## | | ?????????????## ## ### #????##??####??# # | | ??????????????### ## ## ######??## #### %% | | ????????????????## %= #### ## # | | ?????????????????# ##### ##?# ## | | ?????????????????## #########???# ##### ## | | ??????????????????####????#????#?# #???# # | | ??????????????????#?????????####?# ##?## | | ???????????????????????????## ### #### | | ???????????????????????????# # | | ?????????????????????????### % ####### | | ??????????"??#??????#?????#=%* #### #######???#? | | ??????????????????#?????#### ###??# #?#????#???# | | ????????""???????? ????????#####?#??# ##??#????### | +----------------------------------------------------+ Best States ------------- Heat Dissipation 25 Energy Generation 10 Energy Capacity 250 Matter Stores 300 Matter Capacity 300 Sight Range 16 Terrain Scan Range 16 Terrain Scan Density 10 Evasion (%) 40 Recoil Reduction 2 Item Schematics ----------------- None Robot Schematics ------------------ None Fabricated ------------ Nothing Alien Tech Used ----------------- None Achievements -------------- None Challenges ------------ None Game ------ Seed BombWarpInsulator Manual? 0 Play Time 00:07:14 Cumulative 60.5 hours Start 2021.03.13 @ 23:24:08 End 2021.03.13 @ 23:28:23 Sessions 1 Manual Loads 0 Difficulty Rogue Special Mode None Game No. 108 Rogue 108 Adventurer 0 Explorer 0 Win Type - Total 1 Types 1/0/0/0/0/0/0/0/0 Lore% 37 Gallery% 53 Achievement% 44 Wizard Run 0 Options --------- ASCII 0 Keyboard 0 Movement Numpad Keybinds 0 Fullscreen 1 Font 18/Terminus Map View 76x50 Tactical HUD 1 Map Filters NONE Filters NONE Steam 1 RUN: 399cafc4-2a22-4b62-a7ae-110d39431285